bitfinex-derivatives/quotes_SOLF0:USTF0_20250624
["timestamp","ask_amount","ask_price","bid_price","bid_amount"]
[1750739296369,5.30643642,143.29,143.24,3.50998708]
[1750739296569,10.60674813,143.28,143.25,6.9758]
[1750739296772,41.6339,143.3,143.25,6.9758]
[1750739296773,5.30031171,143.27,143.25,6.9758]
[1750739297073,41.6339,143.3,143.25,6.9758]
[1750739297272,10.61029185,143.29,143.25,6.9758]
[1750739297465,10.61029185,143.28,143.25,6.9758]
[1750739297774,5.30071423,143.27,143.25,6.9758]
[1750739297960,41.6339,143.3,143.25,6.9758]
[1750739298164,10.61040414,143.29,143.25,6.9758]
[1750739298464,10.61040414,143.28,143.25,6.9758]
[1750739298671,5.30076991,143.27,143.25,6.9758]
[1750739298870,41.6339,143.3,143.25,6.9758]
[1750739299168,10.61589905,143.29,143.25,6.9758]
[1750739299369,10.61589905,143.28,143.25,6.9758]
[1750739299568,5.30626482,143.27,143.25,6.9758]
[1750739299770,41.6339,143.3,143.25,6.9758]
[1750739299972,10.61559498,143.29,143.25,6.9758]
[1750739300275,41.6339,143.3,143.25,6.9758]
[1750739300276,10.61559498,143.28,143.25,6.9758]
[1750739300575,5.30611283,143.27,143.25,6.9758]
[1750739300766,41.6339,143.3,143.25,6.9758]
[1750739300968,10.61549451,143.29,143.25,6.9758]
[1750739301176,10.61549451,143.28,143.25,6.9758]
[1750739301378,5.30607915,143.27,143.25,6.9758]
[1750739301566,41.6339,143.3,143.25,6.9758]
[1750739301762,10.61552538,143.29,143.24,3.50998708]
[1750739301967,5.30607687,143.28,143.24,10.03486723]
[1750739302163,2.4358,143.32,143.26,3.50397116]
[1750739302371,39.1105,143.33,143.29,6.974]
[1750739302372,10.61262874,143.31,143.29,6.974]
[1750739302576,5.30533125,143.3,143.29,6.974]
[1750739304277,5.30748359,143.3,143.29,6.974]
[1750739304678,46.0829,143.33,143.29,6.974]
[1750739304879,10.61394367,143.32,143.29,6.974]
[1750739305082,10.61394367,143.31,143.28,3.50272375]
[1750739305276,5.30730982,143.3,143.26,3.50272375]
[1750739305477,5.30758826,143.29,143.26,3.50272375]
[1750739305778,9.2208,143.32,143.27,6.975]
[1750739305976,10.61441626,143.31,143.24,10.0276039]
[1750739306179,10.61441626,143.3,143.24,3.50272375]
[1750739306484,10.61441626,143.29,143.24,3.50272375]
[1750739306682,5.30817889,143.28,143.26,6.9754]
[1750739306881,6.9736,143.31,143.26,6.9754]
[1750739307184,10.61850064,143.3,143.26,6.9754]
[1750739307381,10.61850064,143.29,143.26,6.9754]
[1750739307680,5.30824012,143.28,143.26,6.9754]
[1750739307881,5.30824012,143.28,143.24,3.50272375]
[1750739307882,6.9736,143.31,143.27,6.9752]
[1750739308074,10.6228817,143.3,143.27,6.9752]
[1750739308275,45.2428817,143.29,143.27,6.9752]
[1750739308485,5.31042832,143.28,143.27,6.9752]
[1750739309981,34.62,143.29,143.28,6.9748]
[1750739310182,39.92483514,143.29,143.28,6.9748]
[1750739310887,39.92483514,143.29,143.27,6.9751]
[1750739311083,5.30483514,143.28,143.27,6.9751]
[1750739311577,5.30483514,143.28,143.26,10.47832375]
[1750739311783,5.30483514,143.27,143.26,10.47832375]
[1750739313785,34.62,143.29,143.26,10.47832375]
[1750739313986,10.63212186,143.28,143.26,10.47832375]
[1750739314188,5.31572088,143.27,143.26,10.47832375]
[1750739315680,5.31899926,143.27,143.24,10.0276039]
[1750739315880,5.31899926,143.26,143.24,10.0276039]
[1750739316086,34.62,143.29,143.24,10.0276039]
[1750739316287,10.63618073,143.28,143.25,6.9759]
[1750739316587,5.3191307,143.27,143.25,6.9759]
[1750739316888,5.3191307,143.26,143.25,6.9759]
[1750739317275,34.62,143.29,143.26,6.9757]
[1750739317476,10.63662912,143.28,143.26,6.9757]
[1750739317679,5.31935135,143.27,143.26,6.9757]
[1750739318693,5.3195066,143.27,143.26,6.9757]
[1750739320289,5.3195066,143.27,143.25,6.9761]
[1750739320490,41.5943,143.29,143.25,6.9761]
[1750739320491,5.3195066,143.26,143.25,6.9761]
[1750739321385,41.5943,143.29,143.25,6.9761]
[1750739321586,10.63125036,143.28,143.25,6.9761]
[1750739321885,10.63125036,143.27,143.25,6.9761]
[1750739322086,5.31459602,143.26,143.25,6.9761]
[1750739322884,5.31469666,143.26,143.25,6.9761]
[1750739324394,5.31478768,143.26,143.25,6.9761]
[1750739325095,5.31478768,143.26,143.23,13.50208015]
[1750739325390,5.31505509,143.25,143.23,6.9772]
[1750739325596,5.31505509,143.24,143.23,6.9772]
[1750739325795,6.9753,143.27,143.23,6.9772]
[1750739326097,10.63585302,143.26,143.23,6.9772]
[1750739326398,5.31415205,143.25,143.23,6.9772]
[1750739326596,5.31415205,143.24,143.23,6.9772]
[1750739327001,5.3217619,143.27,143.23,6.9772]
[1750739327193,5.31481201,143.26,143.23,6.9772]
[1750739327389,5.31481201,143.25,143.23,6.9772]
[1750739327592,6.9753,143.27,143.23,6.9772]
[1750739327792,10.63605898,143.26,143.23,6.9772]
[1750739328090,5.31425314,143.25,143.23,6.9772]
[1750739328293,6.9753,143.27,143.23,6.9772]
[1750739328492,10.63592851,143.26,143.23,6.9772]
[1750739328692,5.31418573,143.25,143.23,6.9772]
[1750739328892,6.9753,143.27,143.23,6.9772]
[1750739329199,10.63607562,143.26,143.24,6.9767]
[1750739329395,5.31426174,143.25,143.24,6.9767]
[1750739330099,6.975,143.28,143.24,6.9767]
[1750739330295,10.63441704,143.27,143.24,6.9767]
[1750739330498,10.63441704,143.26,143.23,6.977]
[1750739330699,5.3134339,143.25,143.23,6.977]
[1750739330898,6.9753,143.27,143.23,6.977]
[1750739331096,10.63167223,143.26,143.23,6.977]
[1750739331298,6.9753,143.27,143.23,6.977]
[1750739331299,5.3134339,143.25,143.23,6.977]
[1750739331492,5.3134339,143.24,143.23,6.977]
[1750739331798,5.3134339,143.24,143.22,6.9777]
[1750739332000,10.63166182,143.23,143.18,44.65057037]
[1750739332194,5.3134339,143.22,143.19,6.9789]
[1750739332398,6.9773,143.23,143.19,6.9789]
[1750739332701,5.30788572,143.22,143.19,6.9789]
[1750739332908,6.9773,143.23,143.19,6.9789]
[1750739332909,5.30788572,143.21,143.19,6.9789]
[1750739333202,34.6,143.25,143.18,10.48519022]
[1750739333203,6.9779,143.22,143.18,10.48519022]
[1750739333394,5.30829407,143.21,143.18,10.48519022]
[1750739333595,5.30829407,143.2,143.18,10.48519022]
[1750739333793,34.6,143.21,143.18,10.48519022]
[1750739334001,5.30880769,143.2,143.18,6.9795]
[1750739334204,34.6,143.21,143.18,6.9795]
[1750739334394,5.3088087,143.2,143.18,6.9795]
[1750739334706,34.6,143.21,143.18,6.9795]
[1750739340603,41.5783,143.21,143.17,6.98]
[1750739342407,34.6,143.21,143.18,6.9797]
[1750739343106,41.5783,143.21,143.17,6.9801]
[1750739343807,34.6,143.21,143.17,6.9801]
[1750739344105,34.6,143.21,143.16,3.50569022]
[1750739344305,34.6,143.21,143.18,3.50569022]
[1750739344507,34.6,143.21,143.2,6.9787]
[1750739344705,41.5971,143.24,143.2,6.9787]
[1750739347008,6.9775,143.23,143.19,6.9791]
[1750739349008,41.597,143.24,143.2,6.9786]
[1750739349202,41.597,143.24,143.18,3.50569022]
[1750739349203,34.62,143.24,143.18,3.50569022]
[1750739350107,41.5971,143.24,143.2,6.9784]
[1750739355109,12.24171955,143.23,143.2,6.9784]
[1750739355314,6.9774,143.23,143.2,6.9784]
[1750739355511,6.9774,143.23,143.19,6.979]
[1750739359911,6.9774,143.23,143.2,6.9787]
[1750739360913,5.26940217,143.22,143.2,6.9787]
[1750739361118,6.9774,143.23,143.2,6.9787]
[1750739361417,5.26940222,143.22,143.2,6.9787]
[1750739361610,6.9774,143.23,143.2,6.9787]
[1750739361811,5.26939894,143.22,143.2,6.9787]
[1750739362015,6.9774,143.23,143.2,6.9787]
[1750739362320,5.26939894,143.22,143.2,6.9787]
[1750739362618,41.597,143.24,143.2,6.9787]
[1750739362805,5.26929534,143.23,143.2,6.9787]
[1750739363009,41.597,143.24,143.2,6.9787]
[1750739363210,5.26984851,143.23,143.2,6.9787]
[1750739363412,41.597,143.24,143.2,6.9787]
[1750739363612,5.27220009,143.23,143.2,6.9787]
[1750739363812,41.597,143.24,143.2,6.9787]
[1750739364005,5.27219999,143.23,143.2,6.9787]
[1750739364210,41.597,143.24,143.2,6.9787]
[1750739364420,12.2494861,143.23,143.2,6.9787]
[1750739364717,6.9773,143.23,143.2,6.9787]
[1750739365013,5.272836,143.22,143.2,6.9787]
[1750739365718,6.9773,143.23,143.2,6.9787]
[1750739371221,6.9773,143.23,143.19,9.22416595]
[1750739373820,9.22236595,143.23,143.19,9.22416595]
[1750739374016,6.9779,143.22,143.19,9.22416595]
[1750739374620,6.9779,143.22,143.19,6.9791]
[1750739375025,6.9779,143.22,143.18,15.69853798]
[1750739375422,6.9784,143.21,143.18,2.24528288]
[1750739375822,6.9784,143.21,143.17,15.69893798]
[1750739376221,6.9784,143.21,143.18,6.4736551]
[1750739376823,6.9784,143.21,143.18,13.4534551]
[1750739378834,9.22355387,143.22,143.18,15.69900897]
[1750739380739,6.9775,143.23,143.19,2.24555387]
[1750739380941,9.22305387,143.23,143.19,2.24555387]
[1750739381138,2.24555387,143.23,143.19,2.24555387]
[1750739381340,6.9782,143.22,143.19,2.24555387]
[1750739381845,6.9782,143.22,143.19,6.9793]
[1750739382036,5.31348591,143.21,143.19,6.9793]
[1750739382236,34.6,143.21,143.19,6.9793]
[1750739383246,5.28714164,143.2,143.19,6.9793]
[1750739386245,10.60058545,143.2,143.19,6.9793]
[1750739387450,10.60058545,143.2,143.18,15.69867773]
[1750739387641,5.28714164,143.19,143.18,9.22502263]
[1750739388550,5.29797484,143.19,143.18,9.22502263]
[1750739388750,5.29797484,143.19,143.18,15.69867773]
[1750739389453,5.29797484,143.19,143.18,9.22502263]
[1750739390743,5.29717007,143.19,143.18,9.22502263]
[1750739391253,5.29717007,143.19,143.18,15.69867773]
[1750739391442,5.29717007,143.19,143.18,9.22502263]
[1750739392950,5.29717007,143.19,143.17,6.4736551]
[1750739393153,34.6,143.21,143.17,8.71907773]
[1750739393347,10.60985562,143.2,143.17,8.71907773]
[1750739393650,5.29712047,143.19,143.17,15.69927773]
[1750739393851,6.9791,143.2,143.17,15.69927773]
[1750739394040,5.29713088,143.19,143.17,15.69927773]
[1750739394239,6.9791,143.2,143.17,15.69927773]
[1750739394444,5.29716466,143.19,143.17,15.69927773]
[1750739394744,6.9791,143.2,143.17,15.69927773]
[1750739394944,5.29716466,143.19,143.17,15.69927773]
[1750739395146,6.9791,143.2,143.17,15.69927773]
[1750739395350,5.29688045,143.19,143.17,15.69927773]
[1750739395551,6.9791,143.2,143.17,15.69927773]
[1750739395753,5.2969868,143.19,143.17,15.69959835]
[1750739395952,2.24574325,143.2,143.17,6.4736551]
[1750739396250,2.24574325,143.18,143.12,8.70743807]
[1750739396452,2.24574325,143.15,143.1,8.70743807]
[1750739396645,45.19198397,143.17,143.1,8.70743807]
[1750739396646,7.54397069,143.14,143.1,2.24574325]
[1750739396843,36.82574325,143.13,143.1,2.24574325]
[1750739397053,2.24574325,143.11,143.07,10.95318132]
[1750739397248,36.82574325,143.1,143.06,10.95318132]
[1750739397448,36.82574325,143.1,143.06,2.24574325]
[1750739398850,36.82574325,143.1,143.06,9.23124325]
[1750739399253,2.24574325,143.09,143.05,2.24574325]
[1750739399555,2.24574325,143.09,143.05,9.23134325]
[1750739399754,2.24574325,143.09,143.05,2.24574325]
[1750739399955,36.82574325,143.1,143.06,2.24574325]
[1750739400258,34.58,143.1,143.05,3.51415332]
[1750739401048,34.58,143.1,143.07,6.9847]
[1750739402957,41.5637,143.1,143.06,6.9855]
[1750739408163,41.5637,143.1,143.05,10.50005332]
[1750739408359,41.5637,143.1,143.05,3.51415332]
[1750739409251,41.5637,143.1,143.06,6.9856]
[1750739411367,6.9842,143.09,143.05,10.50015332]
[1750739411963,34.58,143.1,143.05,10.50015332]
[1750739411964,41.5639,143.1,143.06,6.9856]
[1750739418573,34.58,143.1,143.05,3.51415332]
[1750739419574,41.5637,143.1,143.07,6.9848]
[1750739421274,41.5637,143.1,143.06,6.9854]
[1750739421471,41.5637,143.1,143.05,3.51415332]
[1750739422274,41.5637,143.1,143.07,2.24894383]
[1750739422674,41.5637,143.1,143.07,9.23384383]
[1750739423572,34.58,143.1,143.08,9.23354383]
[1750739424377,41.5637,143.1,143.08,2.24894383]
[1750739425873,34.58,143.1,143.08,2.24894383]
[1750739426067,34.58,143.1,143.07,2.24894383]
[1750739427078,41.5641,143.1,143.07,2.24894383]
[1750739427273,34.58,143.1,143.07,2.24894383]
[1750739428279,6.9845,143.09,143.07,2.24894383]
[1750739429073,41.5638,143.1,143.07,2.24894383]
[1750739429374,41.5638,143.1,143.07,2.24885743]
[1750739432880,34.58,143.1,143.07,9.23385743]
[1750739433185,34.58,143.1,143.09,2.24885743]
[1750739433483,46.1594,143.13,143.09,9.23265743]
[1750739433684,46.1594,143.13,143.11,2.24885743]
[1750739434080,39.1769,143.13,143.12,2.24885743]
[1750739434282,39.1769,143.13,143.04,2.3296]
[1750739434283,34.58,143.13,143.11,3.5110953]
[1750739434475,34.58,143.13,143.09,3.5110953]
[1750739434778,34.58,143.13,143.1,6.9836]
[1750739437681,34.58,143.13,143.1,10.49542528]
[1750739439881,34.58,143.13,143.11,6.983]
[1750739442084,34.58,143.13,143.1,10.49532528]
[1750739443178,5.24981778,143.12,143.1,10.49532528]
[1750739443382,34.58,143.13,143.1,10.49532528]
[1750739444092,5.24907259,143.12,143.08,3.51182528]
[1750739444294,34.58,143.13,143.08,3.51182528]
[1750739444590,5.24948342,143.12,143.08,3.51182528]
[1750739444786,6.983,143.12,143.08,10.49612528]
[1750739445187,5.24956971,143.11,143.08,10.49612528]
[1750739445386,6.983,143.12,143.08,10.49612528]
[1750739445586,5.26797178,143.11,143.08,10.49612528]
[1750739445885,6.983,143.12,143.09,6.9841]
[1750739446086,5.26798574,143.11,143.09,6.9841]
[1750739446292,6.983,143.12,143.09,6.9841]
[1750739446889,5.26762757,143.11,143.09,6.9841]
[1750739447090,41.5624,143.13,143.08,3.51182528]
[1750739447280,5.26724597,143.12,143.08,3.51182528]
[1750739447487,34.58,143.13,143.1,6.9832]
[1750739447997,34.58,143.13,143.08,3.51182528]
[1750739449896,41.5622,143.13,143.08,3.51182528]
[1750739450295,41.5622,143.13,143.1,6.9834]
[1750739451109,6.9827,143.12,143.09,6.984]
[1750739451510,34.58,143.13,143.08,3.51182528]
[1750739451711,34.58,143.13,143.1,6.9833]
[1750739454214,34.58,143.13,143.11,2.24763456]
[1750739457516,34.58,143.13,143.11,9.23073456]
[1750739459418,34.58,143.13,143.12,6.9827]
[1750739459607,34.58,143.13,143.12,9.23033456]
[1750739460210,34.58,143.13,143.12,6.9827]
[1750739460609,34.58,143.13,143.11,9.23053456]
[1750739461517,34.58,143.13,143.12,6.9827]
[1750739463923,34.58,143.13,143.12,9.23033456]
[1750739464422,39.85806126,143.16,143.14,6.9816]
[1750739464623,5.26775251,143.15,143.14,9.22923456]
[1750739465721,34.56,143.16,143.14,2.24763456]
[1750739466024,34.56,143.16,143.15,6.9812]
[1750739466219,39.82760026,143.16,143.15,6.9812]
[1750739466526,39.82760026,143.16,143.14,9.22923456]
[1750739466823,34.56,143.16,143.14,9.22923456]
[1750739467021,34.56,143.16,143.15,2.24763456]
[1750739467222,39.8257522,143.16,143.15,2.24763456]
[1750739467620,5.2657522,143.16,143.15,2.24763456]
[1750739467820,5.26623087,143.16,143.15,2.24763456]
[1750739468526,5.26623087,143.16,143.14,2.24763456]
[1750739468828,34.54,143.17,143.14,2.24763456]
[1750739469025,39.80579348,143.16,143.14,2.24763456]
[1750739469326,41.5207,143.16,143.14,2.24763456]
[1750739469920,34.54,143.16,143.14,9.22933456]
[1750739472633,6.9807,143.16,143.14,2.24763456]
[1750739474725,34.54,143.17,143.14,2.24763456]
[1750739474726,41.5204,143.17,143.14,2.24763456]
[1750739474926,5.26635666,143.16,143.14,2.24763456]
[1750739475129,6.9804,143.17,143.14,2.24763456]
[1750739475326,5.26632295,143.16,143.14,2.24763456]
[1750739475527,41.5204,143.17,143.14,2.24763456]
[1750739475731,5.27919455,143.16,143.14,2.24763456]
[1750739475928,41.5204,143.17,143.14,2.24763456]
[1750739476132,5.27919455,143.16,143.14,2.24763456]
[1750739476433,41.5204,143.17,143.14,2.24763456]
[1750739476634,5.27876175,143.16,143.14,2.24763456]
[1750739476933,41.5204,143.17,143.14,2.24763456]
[1750739477132,5.27877571,143.16,143.14,2.24763456]
[1750739477321,41.5204,143.17,143.14,2.24763456]
[1750739477523,5.27877571,143.16,143.14,2.24763456]
[1750739477718,5.28209547,143.15,143.14,2.24763456]
[1750739478330,41.5204,143.17,143.14,2.24763456]
[1750739478632,5.28167305,143.16,143.14,2.24763456]
[1750739478833,41.5204,143.17,143.14,2.24763456]
[1750739479032,5.28167304,143.16,143.14,2.24763456]
[1750739479233,41.5204,143.17,143.14,2.24763456]
[1750739479431,5.28167304,143.16,143.14,2.24763456]
[1750739479641,41.5204,143.17,143.14,9.22933456]
[1750739479933,5.27898168,143.16,143.14,9.22933456]
[1750739480132,41.5204,143.17,143.14,9.22933456]
[1750739480334,5.27873252,143.16,143.14,9.22933456]
[1750739480535,41.5204,143.17,143.14,9.22933456]
[1750739480727,5.27869152,143.16,143.14,9.22933456]
[1750739480926,34.54,143.17,143.14,9.22933456]
[1750739481130,5.27867755,143.16,143.14,9.22933456]
[1750739481335,34.54,143.17,143.14,9.22933456]
[1750739481536,5.27809013,143.16,143.14,9.22933456]
[1750739481726,34.54,143.17,143.14,9.22933456]
[1750739481926,5.27810272,143.16,143.14,9.22933456]
[1750739482126,34.54,143.17,143.14,9.22933456]
[1750739482329,5.27810881,143.16,143.14,9.22933456]
[1750739482526,34.54,143.17,143.14,9.22933456]
[1750739482738,5.27810881,143.16,143.15,2.24763456]
[1750739484147,5.27810881,143.16,143.13,6.982]
[1750739484335,6.9807,143.16,143.14,2.24763456]
[1750739485731,41.5204,143.17,143.14,9.22933456]
[1750739485932,5.28310785,143.16,143.14,9.22933456]
[1750739486236,41.5204,143.17,143.14,9.22933456]
[1750739486438,5.2829962,143.16,143.14,9.22933456]
[1750739486638,41.5204,143.17,143.14,9.22933456]
[1750739486839,5.2829962,143.16,143.14,9.22933456]
[1750739487138,41.5204,143.17,143.14,9.22933456]
[1750739487334,5.2829962,143.16,143.14,9.22933456]
[1750739487533,41.5204,143.17,143.14,9.22933456]
[1750739487837,5.28292332,143.16,143.14,9.22933456]
[1750739488038,41.5204,143.17,143.14,9.22933456]
[1750739488239,5.28276402,143.16,143.14,9.22933456]
[1750739488436,41.5204,143.17,143.14,9.22933456]
[1750739488639,5.28276401,143.16,143.14,9.22933456]
[1750739488841,41.5204,143.17,143.14,9.22933456]
[1750739489041,5.27759005,143.16,143.14,9.22933456]
[1750739489342,41.5204,143.17,143.14,9.22933456]
[1750739489547,5.27762379,143.16,143.14,9.22933456]
[1750739489739,41.5204,143.17,143.14,9.22933456]
[1750739489941,5.2775768,143.16,143.14,9.22933456]
[1750739490239,41.5204,143.17,143.14,9.22933456]
[1750739490440,5.27923271,143.16,143.14,9.22933456]
[1750739490741,41.5204,143.17,143.14,9.22933456]
[1750739490940,5.27923271,143.16,143.14,9.22933456]
[1750739491246,34.54,143.17,143.15,9.22733776]
[1750739491440,5.27923271,143.16,143.15,9.22733776]
[1750739492047,34.54,143.17,143.15,9.22733776]
[1750739494449,34.54,143.17,143.15,2.24633776]
[1750739495948,34.54,143.17,143.14,9.22783776]
[1750739496244,34.54,143.17,143.15,6.9812]
[1750739498351,34.54,143.17,143.14,9.22783776]
[1750739499955,34.54,143.17,143.15,6.9812]
[1750739503648,5.28739897,143.16,143.15,6.9812]
[1750739506053,5.28739897,143.16,143.14,13.48700167]
[1750739506249,5.28739897,143.16,143.14,15.73333943]
[1750739506446,41.5202,143.17,143.14,15.73333943]
[1750739507853,41.5202,143.17,143.14,6.50550167]
[1750739508153,36.78633776,143.17,143.13,8.75183943]
[1750739508554,6.981,143.16,143.13,8.75183943]
[1750739508952,6.981,143.16,143.14,2.24633776]
[1750739509749,41.5204,143.17,143.14,2.24633776]
[1750739511149,41.5204,143.17,143.14,8.75183943]
[1750739512152,34.54,143.17,143.14,8.75183943]
[1750739512352,34.54,143.17,143.15,6.50550167]
[1750739512542,34.54,143.17,143.16,2.24633776]
[1750739512748,34.5,143.2,143.16,2.24633776]
[1750739512949,5.29180637,143.19,143.18,2.24633776]
[1750739513344,5.29180637,143.19,143.16,6.50550167]
[1750739513550,5.29180637,143.18,143.17,6.98]
[1750739513757,34.5,143.2,143.17,9.22633776]
[1750739513955,5.28662878,143.19,143.17,9.22633776]
[1750739514254,34.5,143.2,143.17,9.22633776]
[1750739514456,5.2866525,143.19,143.17,9.22633776]
[1750739514659,34.5,143.2,143.17,9.22633776]
[1750739514856,5.28520522,143.19,143.17,9.22633776]
[1750739515058,34.5,143.2,143.17,9.22633776]
[1750739515354,5.28518542,143.19,143.17,9.22633776]
[1750739515554,34.5,143.2,143.17,9.22633776]
[1750739515756,5.28520289,143.19,143.17,9.22633776]
[1750739515956,34.5,143.2,143.17,9.22633776]
[1750739516157,5.28413795,143.19,143.17,9.22633776]
[1750739516359,34.5,143.2,143.17,9.22633776]
[1750739516559,5.28413795,143.19,143.17,9.22633776]
[1750739516861,34.5,143.2,143.17,9.22633776]
[1750739517062,5.28325729,143.19,143.17,9.22633776]
[1750739517262,34.5,143.2,143.17,9.22633776]
[1750739517461,5.27481136,143.19,143.17,9.22633776]
[1750739517662,34.5,143.2,143.17,9.22633776]
[1750739517963,5.27407696,143.19,143.17,9.22633776]
[1750739518157,34.5,143.2,143.17,9.22633776]
[1750739518357,5.27407696,143.19,143.17,9.22633776]
[1750739518559,34.5,143.2,143.17,9.22633776]
[1750739518757,5.27407696,143.19,143.17,9.22633776]
[1750739518963,34.5,143.2,143.17,9.22556677]
[1750739519159,5.27337174,143.19,143.17,9.22556677]
[1750739519466,6.53135642,143.24,143.16,6.52958852]
[1750739519467,34.5,143.23,143.18,2.24556677]
[1750739519771,10.57792801,143.22,143.2,2.24556677]
[1750739519968,10.57792801,143.21,143.2,2.24556677]
[1750739520159,10.57792801,143.21,143.18,6.9796]
[1750739520355,12.82365714,143.2,143.17,2.24556677]
[1750739520563,5.27319617,143.19,143.17,2.24556677]
[1750739520758,2.24556677,143.2,143.17,2.24556677]
[1750739520960,5.27352856,143.19,143.17,2.24556677]
[1750739521158,9.22476677,143.2,143.17,2.24556677]
[1750739521358,5.27375763,143.19,143.17,2.24556677]
[1750739521560,5.27375763,143.18,143.17,2.24556677]
[1750739521759,5.27379134,143.18,143.17,2.24556677]
[1750739522870,5.27379134,143.18,143.16,9.22596677]
[1750739523062,9.22476677,143.2,143.16,9.22596677]
[1750739523370,12.25301593,143.19,143.16,9.22596677]
[1750739523573,5.27371593,143.18,143.16,9.22596677]
[1750739523865,6.9793,143.19,143.16,9.22596677]
[1750739524067,5.2738956,143.18,143.16,9.22596677]
[1750739524270,6.9793,143.19,143.16,9.22596677]
[1750739524469,5.27392002,143.18,143.16,9.22596677]
[1750739524766,6.9793,143.19,143.16,9.22596677]
[1750739525067,5.27415304,143.18,143.16,9.22596677]
[1750739525368,6.9793,143.19,143.16,9.22596677]
[1750739525567,5.2741391,143.18,143.16,9.22596677]
[1750739525768,6.9793,143.19,143.16,9.22596677]
[1750739525968,5.27413918,143.18,143.16,9.22596677]
[1750739526157,6.9793,143.19,143.16,9.22596677]
[1750739526358,5.27415573,143.18,143.16,9.22596677]
[1750739526561,6.9793,143.19,143.16,9.22596677]
[1750739526767,5.27415573,143.18,143.16,9.22596677]
[1750739526968,6.9793,143.19,143.16,9.22596677]
[1750739527166,5.27415573,143.18,143.16,9.22596677]
[1750739527466,6.9793,143.19,143.16,2.24556677]
[1750739527668,5.27426435,143.18,143.16,2.24556677]
[1750739527870,6.9793,143.19,143.16,2.24556677]
[1750739528067,5.27426184,143.18,143.16,2.24556677]
[1750739528262,6.9793,143.19,143.16,2.24556677]
[1750739528458,5.27444839,143.18,143.16,2.24556677]
[1750739528672,6.9793,143.19,143.16,2.24556677]
[1750739528870,5.27448763,143.18,143.16,2.24556677]
[1750739529066,6.9793,143.19,143.16,2.24556677]
[1750739529268,5.27448763,143.18,143.16,2.24556677]
[1750739529472,41.4793,143.19,143.16,2.24556677]
[1750739529680,5.27448763,143.18,143.16,2.24556677]
[1750739529877,41.4793,143.19,143.16,2.24556677]
[1750739530075,5.27448763,143.18,143.16,2.24556677]
[1750739530377,7.52093014,143.17,143.13,6.52958852]
[1750739530577,2.24556677,143.16,143.13,6.52958852]
[1750739530877,9.22656677,143.16,143.13,6.52958852]
[1750739531764,6.981,143.16,143.13,15.75725529]
[1750739532375,6.981,143.16,143.14,2.24556677]
[1750739532575,9.2438,143.17,143.14,15.75675529]
[1750739533871,2.2635,143.17,143.15,6.981]
[1750739534076,34.5,143.19,143.15,6.981]
[1750739534077,34.5,143.19,143.16,2.24556677]
[1750739534471,34.5,143.19,143.16,15.75565529]
[1750739536679,41.4793,143.19,143.16,15.75565529]
[1750739537682,34.5,143.19,143.16,15.75565529]
[1750739539579,34.5,143.19,143.16,8.77515529]
[1750739539887,36.7748,143.22,143.18,8.77494659]
[1750739540182,5.27961972,143.21,143.18,9.22495807]
[1750739540485,36.7748,143.22,143.18,9.22495807]
[1750739540782,5.27943981,143.21,143.19,6.9792]
[1750739540982,36.7748,143.22,143.19,6.9792]
[1750739541186,5.27935911,143.21,143.19,6.9792]
[1750739541375,36.7748,143.22,143.19,6.9792]
[1750739541575,5.2793591,143.21,143.19,6.9792]
[1750739541777,36.7748,143.22,143.2,6.9787]
[1750739541985,5.2793591,143.21,143.2,6.9787]
[1750739542487,36.7748,143.22,143.2,6.9787]
[1750739542981,5.27760988,143.21,143.2,6.9787]
[1750739543183,36.7748,143.22,143.2,6.9787]
[1750739543384,5.27765346,143.21,143.2,6.9787]
[1750739543885,5.27765346,143.21,143.19,6.9791]
[1750739544086,36.7748,143.22,143.19,6.9791]
[1750739544284,5.28507846,143.21,143.19,6.9791]
[1750739544480,39.01994073,143.22,143.19,6.9791]
[1750739544682,5.28503635,143.21,143.19,6.9791]
[1750739544876,5.28514781,143.2,143.18,6.9796]
[1750739545077,2.24514073,143.21,143.18,6.9796]
[1750739545278,5.28538363,143.2,143.18,6.9796]
[1750739545476,2.24514073,143.21,143.18,6.9796]
[1750739545677,5.28538363,143.2,143.18,6.9796]
[1750739545874,2.24514073,143.21,143.18,6.9796]
[1750739546086,5.28538363,143.2,143.18,6.9796]